bitfinex/quotes_BTCUSD_20250406
["timestamp","ask_amount","ask_price","bid_price","bid_amount"]
[1743969219763,0.53004,79421.0,79399.0,0.01454085]
[1743969219981,0.53004,79421.0,79401.0,0.012594]
[1743969220333,0.0492,79428.0,79403.0,0.01454085]
[1743969220551,0.0492,79428.0,79405.0,0.01454085]
[1743969220703,0.0492,79428.0,79406.0,0.12290297]
[1743969221568,0.0492,79428.0,79408.0,0.27899685]
[1743969221702,0.15,79431.0,79408.0,0.27899685]
[1743969221703,0.15,79431.0,79408.0,0.40189982]
[1743969222339,0.1902069,79432.0,79408.0,0.40189982]
[1743969222340,0.0001669,79432.0,79408.0,0.40189982]
[1743969223180,0.0001669,79432.0,79408.0,0.13744382]
[1743969223395,0.0001669,79432.0,79408.0,0.2603415]
[1743969223723,0.0001669,79432.0,79408.0,0.2663415]
[1743969226122,0.0001669,79432.0,79408.0,0.5182045]
[1743969226627,0.0001669,79432.0,79408.0,0.2789345]
[1743969226854,0.0001669,79432.0,79408.0,0.2663415]
[1743969228839,0.0001669,79432.0,79408.0,0.5182045]
[1743969230209,0.0001669,79432.0,79408.0,0.5307975]
[1743969232207,0.0001669,79432.0,79408.0,0.55086061]
[1743969232434,0.0001669,79432.0,79408.0,0.96406061]
[1743969232846,0.0001669,79432.0,79408.0,0.95806061]
[1743969233040,0.0001669,79432.0,79408.0,0.97079722]
[1743969233251,0.0001669,79432.0,79408.0,0.97679722]
[1743969233418,0.0001669,79432.0,79408.0,0.97079722]
[1743969233791,0.0001669,79432.0,79408.0,0.97679722]
[1743969234815,0.0001669,79432.0,79408.0,1.16647722]
[1743969235136,0.0001669,79432.0,79408.0,1.16047722]
[1743969235553,0.0001669,79432.0,79408.0,1.16647722]
[1743969236565,0.0001669,79432.0,79408.0,1.16643722]
[1743969236776,0.049,79420.0,79408.0,0.54210297]
[1743969237089,0.34,79428.0,79408.0,0.80655897]
[1743969237327,0.049,79428.0,79408.0,0.82109982]
[1743969237585,0.0001672,79429.0,79408.0,0.82109982]
[1743969238490,0.0001672,79429.0,79408.0,0.81509982]
[1743969238669,0.0001672,79429.0,79408.0,0.82109982]
[1743969238869,0.0001672,79429.0,79408.0,0.9439975]
[1743969239145,0.0001672,79429.0,79408.0,0.9379975]
[1743969239315,0.0001672,79429.0,79408.0,0.9439975]
[1743969240995,0.0001672,79429.0,79408.0,1.1335575]
[1743969241643,0.0001672,79429.0,79408.0,1.1275575]
[1743969241817,0.0001672,79429.0,79408.0,1.1335575]
[1743969242009,0.0001672,79429.0,79408.0,1.1575575]
[1743969242700,0.0001672,79429.0,79408.0,1.1635575]
[1743969242929,0.0001672,79429.0,79408.0,1.2903575]
[1743969243164,0.0001672,79429.0,79408.0,1.3461575]
[1743969243930,0.0001672,79429.0,79408.0,1.3914575]
[1743969244129,0.0001672,79429.0,79424.0,0.264403]
[1743969244356,0.0001672,79429.0,79424.0,1.31501343]
[1743969244963,0.0001672,79429.0,79424.0,1.31497343]
[1743969245343,0.00030332,79425.0,79424.0,1.31497343]
[1743969245753,0.00030332,79425.0,79424.0,1.32097343]
[1743969246000,0.00030332,79425.0,79424.0,1.17717343]
[1743969246195,0.00030332,79425.0,79424.0,0.61842647]
[1743969246419,0.00030332,79425.0,79424.0,0.12890297]
[1743969247673,0.00030332,79425.0,79424.0,0.12290297]
[1743969247917,0.00030332,79425.0,79424.0,0.12890297]
[1743969248129,0.00030332,79425.0,79424.0,0.15855144]
[1743969248277,0.00030332,79425.0,79424.0,0.2729315]
[1743969248480,0.00030332,79425.0,79424.0,0.7375315]
[1743969248682,0.00030332,79425.0,79424.0,0.9003315]
[1743969248882,0.0001672,79429.0,79428.0,0.29439]
[1743969249083,0.0001672,79429.0,79428.0,0.56463382]
[1743969249413,0.0001672,79429.0,79428.0,1.09678532]
[1743969249615,0.0001672,79429.0,79428.0,1.43678532]
[1743969250994,0.0001672,79429.0,79428.0,0.88628532]
[1743969251171,0.0001672,79429.0,79428.0,0.91128532]
[1743969251579,0.0001672,79429.0,79428.0,0.87174447]
[1743969251779,0.0001672,79429.0,79428.0,1.06102447]
[1743969251980,0.0001672,79429.0,79428.0,0.92228532]
[1743969252184,0.0001672,79429.0,79428.0,1.10056532]
[1743969252384,0.0001672,79429.0,79428.0,1.07556532]
[1743969252641,0.0001672,79429.0,79428.0,1.10656532]
[1743969252841,0.0001672,79429.0,79428.0,1.10556532]
[1743969253122,0.0001672,79429.0,79428.0,1.11156532]
[1743969253316,0.0001672,79429.0,79428.0,1.58436532]
[1743969253678,0.0001672,79429.0,79428.0,1.63196532]
[1743969253882,3e-07,79441.0,79440.0,0.005]
[1743969254054,0.0462,79479.0,79456.0,0.02712585]
[1743969254231,0.0462,79479.0,79456.0,0.35933193]
[1743969254433,0.0473,79484.0,79456.0,0.61104293]
[1743969254434,0.00062199,79457.0,79456.0,0.61104293]
[1743969254634,0.00062199,79457.0,79456.0,1.02924293]
[1743969254841,0.00062199,79457.0,79456.0,1.15214061]
[1743969255018,0.00062199,79457.0,79456.0,0.95790061]
[1743969255223,0.00062199,79457.0,79456.0,1.14710061]
[1743969255657,0.00062199,79457.0,79456.0,1.15310061]
[1743969256295,0.00062199,79457.0,79456.0,0.96390061]
[1743969257377,0.00062199,79457.0,79456.0,0.96890061]
[1743969257638,0.00062199,79457.0,79456.0,0.95790061]
[1743969257863,0.00062199,79457.0,79456.0,0.41154337]
[1743969258056,0.00062199,79457.0,79456.0,0.68183937]
[1743969258382,0.03025619,79484.0,79478.0,0.25164]
[1743969258577,0.0303925,79484.0,79482.0,0.251626]
[1743969258780,0.00556928,79483.0,79482.0,0.251626]
[1743969258996,0.00013631,79484.0,79483.0,0.012581]
[1743969259170,0.00013631,79484.0,79482.0,0.012581]
[1743969259401,0.00013631,79484.0,79481.0,0.26421]
[1743969259555,0.00013631,79484.0,79482.0,0.09558204]
[1743969260134,0.00013631,79484.0,79482.0,0.34720804]
[1743969260358,0.00013631,79484.0,79482.0,0.35978904]
[1743969260922,0.00013631,79484.0,79482.0,0.09558204]
[1743969261292,0.00013631,79484.0,79482.0,0.10158204]
[1743969261494,0.00013631,79484.0,79483.0,0.05541204]
[1743969262984,0.00013631,79484.0,79483.0,0.30703804]
[1743969263536,0.00013631,79484.0,79483.0,0.31961904]
[1743969264186,0.00013631,79484.0,79483.0,0.46306286]
[1743969264317,0.00013631,79484.0,79483.0,0.06141204]
[1743969264526,0.00013631,79484.0,79483.0,0.006]
[1743969268407,0.00013631,79484.0,79483.0,0.39562596]
[1743969268614,0.00013631,79484.0,79483.0,0.40765082]
[1743969270317,0.00013631,79484.0,79483.0,0.14344382]
[1743969270547,0.00013631,79484.0,79483.0,0.006]
[1743969270746,0.09343631,79484.0,79483.0,0.006]
[1743969270952,0.09831994,79484.0,79483.0,0.006]
[1743969271884,0.34,79481.0,79465.0,0.00942147]
[1743969272088,0.34,79481.0,79473.0,1.196668]
[1743969272871,0.34,79481.0,79473.0,1.08788]
[1743969272872,0.00488544,79480.0,79473.0,1.08788]
[1743969273271,0.15,79474.0,79473.0,1.08788]
[1743969273468,0.49,79474.0,79473.0,1.08788]
[1743969273675,0.34,79473.0,79453.0,1.0876]
[1743969273888,0.05078153,79472.0,79457.0,0.12289768]
[1743969274213,0.046,79472.0,79457.0,0.12289768]
[1743969274480,0.046,79472.0,79459.0,0.012585]
[1743969274712,0.046,79472.0,79460.0,0.12541955]
[1743969275165,0.00471006,79471.0,79461.0,0.251695]
[1743969275423,0.34,79478.0,79464.0,0.012584]
[1743969275624,0.34,79478.0,79465.0,0.00251656]
[1743969275854,0.00470926,79477.0,79462.0,0.08105568]
[1743969275985,0.00470926,79477.0,79461.0,0.12290297]
[1743969276190,0.00470926,79477.0,79457.0,0.12289768]
[1743969276393,0.34,79478.0,79458.0,0.12290297]
[1743969277654,0.34,79469.0,79460.0,0.006]
[1743969277772,0.00473079,79468.0,79457.0,0.12289768]
[1743969277976,0.00473079,79468.0,79458.0,0.12265081]
[1743969278175,0.00473079,79468.0,79458.0,0.12865081]
[1743969278398,0.00473079,79468.0,79458.0,0.12265081]
[1743969278835,0.00473079,79468.0,79460.0,0.018584]
[1743969278977,0.34,79478.0,79460.0,0.13548697]
[1743969279174,0.00470404,79477.0,79467.0,0.251676]
[1743969279433,0.00470404,79477.0,79465.0,0.251682]
[1743969279622,0.00470404,79477.0,79463.0,0.26427]
[1743969279794,0.046,79479.0,79464.0,0.00251657]
[1743969279999,0.00470364,79478.0,79464.0,0.00251657]
[1743969280198,0.00470364,79478.0,79465.0,0.04551734]
[1743969280400,0.00470364,79478.0,79461.0,0.05289685]
[1743969280981,0.00470364,79478.0,79462.0,0.00251657]
[1743969281391,0.00470364,79478.0,79465.0,0.006]
[1743969281608,0.00470364,79478.0,79465.0,0.12890297]
[1743969281963,0.00470364,79478.0,79462.0,0.01510057]
[1743969281964,0.00470364,79478.0,79469.0,0.26425]
[1743969282173,0.00470364,79478.0,79471.0,0.264247]
[1743969282324,0.04593631,79484.0,79472.0,0.012583]
[1743969282526,0.00013631,79484.0,79477.0,0.264224]
[1743969282726,0.00472805,79483.0,79482.0,0.012581]
[1743969282941,0.00013631,79484.0,79483.0,0.012581]
[1743969283135,0.00013631,79484.0,79483.0,0.2729225]
[1743969284475,0.00013631,79484.0,79483.0,0.2789225]
[1743969284696,0.00013631,79484.0,79483.0,0.2839225]
[1743969284848,0.00013631,79484.0,79483.0,0.5319225]
[1743969285063,0.00013631,79484.0,79483.0,0.6911225]
[1743969285292,0.00013631,79484.0,79483.0,0.6971225]
[1743969285695,0.00013631,79484.0,79483.0,0.6921225]
[1743969285892,0.00013631,79484.0,79483.0,0.8806825]
[1743969286067,0.00013631,79484.0,79483.0,0.8746825]
[1743969286800,0.00013631,79484.0,79483.0,0.53610297]
[1743969287517,0.00013631,79484.0,79483.0,0.54210297]
[1743969287741,0.00013631,79484.0,79483.0,0.006]
[1743969288138,0.00013631,79484.0,79482.0,1.08768]
[1743969288645,0.00013631,79484.0,79483.0,0.006]
[1743969288803,0.00013631,79484.0,79483.0,0.115368]
[1743969289002,0.00013631,79484.0,79482.0,1.08768]
[1743969289252,0.00013631,79484.0,79482.0,1.09368]
[1743969289437,0.00013631,79484.0,79482.0,0.006]
[1743969289650,0.3875,79482.0,79456.0,0.00654272]
[1743969289847,0.51040297,79482.0,79458.0,0.24580065]
[1743969290043,0.00481258,79481.0,79458.0,0.24580065]
[1743969291525,0.34,79480.0,79463.0,0.251689]
[1743969291723,0.34,79480.0,79463.0,0.37459197]
[1743969291901,0.00481178,79479.0,79464.0,0.00251654]
[1743969292100,0.00481178,79479.0,79469.0,0.012583]
[1743969292311,0.00481178,79479.0,79465.0,0.06665505]
[1743969292522,0.00481178,79479.0,79459.0,0.01454085]
[1743969292682,0.00481178,79479.0,79461.0,0.01454085]
[1743969293065,0.00481178,79479.0,79469.0,0.01454085]
[1743969293285,0.34013631,79484.0,79473.0,0.251657]
[1743969293487,0.34013631,79484.0,79474.0,0.00251629]
[1743969293684,0.001,79481.0,79475.0,0.06684461]
[1743969293907,0.001,79481.0,79476.0,0.00251621]
[1743969294264,0.001,79479.0,79476.0,0.00251621]
[1743969295091,0.00013631,79484.0,79476.0,0.00251621]
[1743969295473,0.001,79479.0,79477.0,0.251645]
[1743969295680,0.001,79479.0,79478.0,0.20881626]
[1743969295871,0.001,79479.0,79478.0,0.22335711]
[1743969296689,0.00013631,79484.0,79481.0,0.012581]
[1743969296940,0.00013631,79484.0,79482.0,0.002516]
[1743969297167,0.00013631,79484.0,79483.0,0.32554809]
[1743969297384,0.00013631,79484.0,79483.0,0.33812909]
[1743969298227,0.00013631,79484.0,79483.0,0.07392209]
[1743969298452,0.00013631,79484.0,79483.0,0.21192204]
[1743969298653,0.00013631,79484.0,79483.0,0.21792204]
[1743969299411,0.00013631,79484.0,79483.0,0.20282506]
[1743969300048,0.00013631,79484.0,79483.0,0.006]
[1743969300459,0.04953631,79484.0,79483.0,0.006]
[1743969300688,0.00013631,79484.0,79483.0,0.006]
[1743969301067,0.00013631,79484.0,79483.0,0.270207]
[1743969301632,0.00013631,79484.0,79483.0,0.006]
[1743969301826,0.00013631,79484.0,79483.0,0.0594437]
[1743969302939,0.00013631,79484.0,79483.0,0.06195966]
[1743969303196,0.00013631,79484.0,79483.0,0.21198448]
[1743969304027,0.00013631,79484.0,79483.0,0.39418448]
[1743969304237,0.00013631,79484.0,79483.0,0.39166852]
[1743969304384,0.00013631,79484.0,79483.0,0.39766852]
[1743969304570,0.00013631,79484.0,79483.0,0.39166852]
[1743969304973,0.00013631,79484.0,79483.0,0.39766852]
[1743969305177,0.00013631,79484.0,79483.0,0.39166852]
[1743969305556,0.00013631,79484.0,79483.0,0.39766852]
[1743969306215,0.00013631,79484.0,79483.0,0.90766852]
[1743969306570,0.00013631,79484.0,79483.0,0.93266852]
[1743969306985,0.00013631,79484.0,79483.0,0.90266852]
[1743969307456,0.00013631,79484.0,79483.0,0.66276852]
[1743969307633,0.00013631,79484.0,79483.0,0.81078852]
[1743969307832,0.00013631,79484.0,79483.0,1.03529267]
[1743969308033,0.00013631,79484.0,79483.0,1.06241452]
[1743969308237,0.00013631,79484.0,79483.0,1.04787367]
[1743969308645,0.00013631,79484.0,79483.0,1.06241452]
[1743969308896,0.00013631,79484.0,79483.0,1.04787367]
[1743969309144,0.00013631,79484.0,79483.0,1.05641452]
[1743969310419,0.00013631,79484.0,79483.0,1.06241452]
[1743969311044,0.00013631,79484.0,79483.0,1.05641452]
[1743969311289,7.1e-07,79489.0,79488.0,0.26419]
[1743969311512,7.1e-07,79489.0,79488.0,0.8273677]
[1743969313117,7.1e-07,79489.0,79488.0,1.0153277]
[1743969313597,7.1e-07,79489.0,79488.0,1.0213277]
[1743969314077,7.1e-07,79489.0,79488.0,1.4326277]
[1743969314314,7.1e-07,79489.0,79488.0,1.55552538]
[1743969314957,7.1e-07,79489.0,79488.0,1.54952538]
[1743969315179,7.1e-07,79489.0,79488.0,1.55552538]
[1743969315610,7.1e-07,79489.0,79488.0,1.56052538]
[1743969315796,7.1e-07,79489.0,79488.0,2.64780538]
[1743969315975,7.1e-07,79489.0,79488.0,2.78060538]
[1743969316177,0.092,79536.0,79504.0,0.264136]
[1743969316365,0.047,79536.0,79504.0,1.1429789]
[1743969316569,0.047,79541.0,79504.0,1.1429789]
[1743969317328,0.195,79548.0,79504.0,1.1429789]
[1743969317329,4e-07,79505.0,79504.0,1.5592789]
[1743969317490,4e-07,79505.0,79504.0,1.5652789]
[1743969317809,4e-07,79505.0,79504.0,1.5592789]
[1743969318032,0.3401673,79552.0,79515.0,0.012576]
[1743969318225,0.00030361,79516.0,79515.0,0.84156475]
[1743969318435,0.0001673,79552.0,79536.0,0.012572]
[1743969318660,0.00062125,79537.0,79536.0,2.1022077]
[1743969319383,0.0001673,79552.0,79551.0,0.263981]
[1743969319637,0.0003034,79552.0,79551.0,0.4139587]
[1743969320141,0.0003034,79552.0,79551.0,0.8271587]
[1743969320381,0.0003034,79552.0,79551.0,0.8521587]
[1743969320619,0.0003034,79552.0,79551.0,0.97505638]
[1743969320899,0.0003034,79552.0,79551.0,0.98105638]
[1743969321089,0.0003034,79552.0,79551.0,0.97505638]
[1743969321445,0.0003034,79552.0,79551.0,0.98105638]
[1743969321667,0.0003034,79552.0,79551.0,0.97505638]
[1743969321949,0.0003034,79552.0,79551.0,0.98105638]
[1743969322429,5.5e-07,79552.0,79551.0,0.98605638]
[1743969323418,5.5e-07,79552.0,79551.0,0.98005638]
[1743969323655,5.5e-07,79552.0,79551.0,0.98105638]
[1743969323855,5.5e-07,79552.0,79551.0,0.97505638]
[1743969324043,5.5e-07,79552.0,79551.0,0.98747134]
[1743969324244,5.5e-07,79552.0,79551.0,0.99347134]
[1743969325210,5.5e-07,79552.0,79551.0,0.99847134]
[1743969327253,5.5e-07,79552.0,79551.0,0.99347134]
[1743969327435,5.5e-07,79552.0,79551.0,1.18103134]
[1743969329115,5.5e-07,79552.0,79551.0,1.52603134]
[1743969330710,5.5e-07,79552.0,79551.0,1.52591134]
[1743969330910,5.5e-07,79559.0,79558.0,0.293957]
[1743969331077,0.0001672,79569.0,79568.0,0.012567]
[1743969331270,0.0001672,79569.0,79568.0,2.44345439]
[1743969331523,2e-07,79569.0,79568.0,2.5987417]
[1743969333425,2e-07,79569.0,79568.0,2.6047417]
[1743969333575,2e-07,79569.0,79568.0,2.6097417]
[1743969333778,2e-07,79569.0,79568.0,2.73263938]
[1743969334231,2e-07,79569.0,79568.0,2.72663938]
[1743969334377,2e-07,79569.0,79568.0,2.73263938]
[1743969334571,2e-07,79569.0,79568.0,2.78023938]
[1743969335029,0.0001672,79584.0,79583.0,0.263874]
[1743969335230,0.00030328,79584.0,79583.0,0.8823274]
[1743969336457,0.00030328,79584.0,79583.0,0.8883274]
[1743969336947,5.635e-05,79584.0,79583.0,0.8883274]
[1743969337370,5.635e-05,79584.0,79583.0,1.0756074]
[1743969337562,5.635e-05,79584.0,79583.0,0.8883274]
[1743969337764,5.635e-05,79584.0,79583.0,0.59737867]
[1743969337971,5.635e-05,79584.0,79583.0,0.60994367]
[1743969338837,5.635e-05,79584.0,79583.0,0.62448452]
[1743969339012,5.635e-05,79584.0,79583.0,0.6370184]
[1743969340339,5.635e-05,79584.0,79583.0,0.7257847]
[1743969340560,5.635e-05,79584.0,79583.0,0.86125267]
[1743969340940,5.635e-05,79584.0,79583.0,0.44805267]
[1743969341940,5.635e-05,79584.0,79583.0,0.18417867]
[1743969342322,5.635e-05,79584.0,79583.0,0.19674367]
[1743969344007,5.635e-05,79584.0,79583.0,0.006]
[1743969344211,0.04615635,79584.0,79583.0,0.006]
[1743969344385,5.635e-05,79584.0,79583.0,0.14146797]
[1743969344595,5.635e-05,79584.0,79583.0,0.15852186]
[1743969344727,5.635e-05,79584.0,79583.0,0.25228255]
[1743969344926,5.635e-05,79584.0,79583.0,0.24976951]
[1743969345493,5.635e-05,79584.0,79583.0,0.24376951]
[1743969345838,5.635e-05,79584.0,79583.0,0.24976951]
[1743969346039,5.635e-05,79584.0,79583.0,0.24376951]
[1743969346519,5.635e-05,79584.0,79583.0,0.24976951]
[1743969347592,0.0001671,79601.0,79583.0,0.24976951]
[1743969347823,0.04192345,79607.0,79604.0,0.251243]
[1743969348515,0.04192345,79607.0,79604.0,0.263805]
[1743969348718,8e-05,79609.0,79608.0,0.012561]
[1743969348922,0.00021603,79609.0,79608.0,0.13797599]
[1743969349723,0.00021603,79609.0,79608.0,0.13546397]
[1743969349940,0.00021603,79609.0,79608.0,0.21394917]
[1743969350564,0.00021603,79609.0,79608.0,0.21994917]
[1743969350800,0.00021603,79609.0,79608.0,0.23449002]
[1743969351541,0.00021603,79609.0,79608.0,0.23700181]
[1743969352368,0.00021603,79609.0,79608.0,0.23100181]
[1743969352691,0.00021603,79609.0,79608.0,0.23449002]
[1743969353841,0.00021603,79609.0,79608.0,0.23700162]
[1743969354029,0.00021603,79609.0,79608.0,0.23449002]
[1743969354622,0.0467,79633.0,79617.0,0.01256]
[1743969354623,0.04225023,79633.0,79617.0,0.01256]
[1743969354822,0.04270355,79633.0,79618.0,0.15179167]
[1743969355228,0.04270355,79633.0,79619.0,0.012559]
[1743969355427,0.04270355,79633.0,79624.0,0.251179]
[1743969355628,0.04270355,79633.0,79623.0,0.012559]
[1743969356022,0.04270355,79633.0,79622.0,0.251186]
[1743969356242,0.04270355,79633.0,79623.0,0.06978477]
[1743969356642,0.04270355,79633.0,79624.0,0.12890297]
[1743969356977,0.04270355,79633.0,79624.0,0.12290297]
[1743969359093,0.00045332,79633.0,79632.0,0.263712]
[1743969359328,0.00045332,79633.0,79632.0,0.12290297]
[1743969359535,0.00045332,79633.0,79632.0,0.16407697]
[1743969359666,0.04202032,79641.0,79632.0,0.16407697]
[1743969359873,0.04215626,79641.0,79632.0,0.041174]
[1743969360053,0.04215626,79641.0,79616.0,0.263765]
[1743969360267,0.34,79635.0,79610.0,0.01253388]
[1743969360469,0.34,79635.0,79611.0,0.12290297]
[1743969360679,0.34,79635.0,79632.0,0.005]
[1743969361694,0.34013594,79641.0,79632.0,0.005]
[1743969361912,0.34013594,79641.0,79615.0,0.26574685]
[1743969362116,0.34,79639.0,79616.0,0.21577865]
[1743969362321,0.34,79639.0,79624.0,0.006]
[1743969362564,0.34,79639.0,79614.0,0.01256]
[1743969362565,0.0458,79627.0,79608.0,0.08813736]
[1743969362783,0.0461,79626.0,79609.0,0.12290297]
[1743969363003,0.0461,79626.0,79610.0,0.08880443]
[1743969363186,0.0461,79626.0,79611.0,0.12290297]
[1743969363359,0.0461,79626.0,79616.0,0.006]
[1743969363826,0.0461,79626.0,79610.0,0.08880443]
[1743969363988,0.34,79618.0,79606.0,0.012561]
[1743969364195,0.34,79618.0,79610.0,0.12290297]
[1743969364551,0.34,79618.0,79614.0,0.01256]
[1743969364788,0.34,79618.0,79612.0,0.251215]
[1743969365006,0.0461,79626.0,79612.0,0.251215]
[1743969365007,0.0461,79626.0,79612.0,0.263775]
[1743969365250,0.0461,79626.0,79613.0,0.0926812]
[1743969365472,0.34,79618.0,79597.0,1.34664772]
[1743969365691,0.34,79618.0,79610.0,0.006]
[1743969366110,0.34,79618.0,79601.0,0.012562]
[1743969366337,0.34,79618.0,79612.0,0.006]
[1743969366622,0.34,79618.0,79601.0,0.38671697]
[1743969366846,0.34,79618.0,79610.0,0.006]
[1743969367536,0.34,79625.0,79611.0,0.012561]
[1743969367782,0.34,79625.0,79613.0,0.251213]
[1743969368005,0.34,79625.0,79610.0,0.006]
[1743969368245,0.34,79625.0,79604.0,0.263802]
[1743969368473,0.34,79625.0,79605.0,0.04243857]
[1743969368703,0.3861,79626.0,79602.0,0.12289768]
[1743969368941,0.34,79618.0,79602.0,0.12289768]
[1743969369201,0.34,79618.0,79613.0,0.006]
[1743969369443,0.34,79618.0,79603.0,0.38670897]
[1743969369444,0.34,79618.0,79605.0,0.25124]
[1743969369671,0.34,79618.0,79606.0,0.251237]
[1743969369912,0.0461,79626.0,79607.0,0.17763132]
[1743969370144,0.0461,79626.0,79611.0,0.012561]
[1743969370382,0.34,79624.0,79606.0,0.251234]
[1743969370610,0.34,79624.0,79606.0,0.263795]
[1743969370852,0.34,79624.0,79607.0,0.04118167]
[1743969371537,0.34,79624.0,79613.0,0.006]
[1743969371775,0.34,79624.0,79607.0,0.04118167]
[1743969372006,0.34,79624.0,79602.0,0.12289768]
[1743969372238,0.34,79624.0,79607.0,0.006]
[1743969372472,0.34,79624.0,79607.0,0.01288977]
[1743969372699,0.34,79624.0,79613.0,0.006]
[1743969373200,0.34,79625.0,79614.0,0.01256]
[1743969373458,0.34,79625.0,79611.0,0.263781]
[1743969373698,0.34,79625.0,79612.0,0.12289768]
[1743969374164,0.34,79622.0,79612.0,0.12289768]
[1743969375077,0.34,79622.0,79613.0,0.006]
[1743969375495,0.34,79622.0,79608.0,1.08572]
[1743969375716,0.34,79614.0,79612.0,0.006]
[1743969375997,0.34,79614.0,79608.0,1.08572]
[1743969376202,0.34,79614.0,79613.0,0.006]
[1743969376617,0.34,79614.0,79613.0,0.06264456]
[1743969377024,0.34,79614.0,79613.0,0.06309788]
[1743969377232,0.34,79614.0,79613.0,0.05709788]
[1743969377871,0.0493,79616.0,79613.0,0.00045332]
[1743969378080,0.34,79624.0,79613.0,0.00045332]
[1743969379107,0.34,79624.0,79613.0,0.00645332]
[1743969379236,0.34,79624.0,79613.0,0.00045332]
[1743969379444,0.34,79624.0,79613.0,0.11035963]
[1743969379665,0.34,79624.0,79613.0,0.11635963]
[1743969380064,0.34,79614.0,79613.0,0.00645332]
[1743969380465,0.386,79614.0,79613.0,0.00645332]
[1743969380703,0.34,79598.0,79583.0,1.08576]
[1743969380919,0.046,79597.0,79585.0,0.00013603]
[1743969381165,0.046,79597.0,79586.0,0.10862298]
[1743969381593,0.34,79590.0,79585.0,0.00013603]
[1743969381806,0.3865,79590.0,79585.0,0.00013603]
[1743969382067,0.34,79588.0,79585.0,0.00013603]
[1743969382232,0.34,79586.0,79585.0,0.00013603]
[1743969382443,0.46290297,79586.0,79585.0,0.00013603]
[1743969382642,0.49,79582.0,79581.0,0.0003338]
[1743969382852,0.61290297,79582.0,79581.0,0.0003338]
[1743969383580,0.61790297,79582.0,79581.0,0.0003338]
[1743969383973,0.61290297,79582.0,79581.0,0.0003338]
[1743969384319,0.49,79582.0,79581.0,0.0003338]
[1743969384557,0.61290297,79582.0,79581.0,0.0003338]
[1743969384676,0.49,79582.0,79581.0,0.0003338]
[1743969385392,0.61790297,79582.0,79581.0,0.0003338]
[1743969385608,0.61790297,79582.0,79581.0,0.0063338]
[1743969386073,0.34,79565.0,79558.0,1.08576]
[1743969386305,0.0468,79564.0,79558.0,1.08589608]
[1743969386998,0.34,79565.0,79558.0,1.08589608]
[1743969387216,0.34,79572.0,79559.0,0.10858961]
[1743969388625,0.15,79579.0,79564.0,0.012568]
[1743969388829,0.15,79579.0,79561.0,0.251376]
[1743969389038,0.34,79578.0,79563.0,0.25137]
[1743969389445,0.34,79578.0,79562.0,0.37427368]
[1743969389687,0.001,79572.0,79562.0,0.37427368]
[1743969390082,0.34,79578.0,79564.0,0.251369]
[1743969390427,0.151,79579.0,79564.0,0.251369]
[1743969390428,0.34,79587.0,79570.0,0.25135]
[1743969390640,0.34,79587.0,79571.0,0.18672167]
[1743969390827,0.335,79587.0,79571.0,0.18672167]
[1743969392076,0.15,79579.0,79571.0,0.0638187]
[1743969392270,0.15,79570.0,79562.0,0.006]
[1743969392480,0.1968,79570.0,79558.0,1.08589608]
[1743969392652,0.15,79570.0,79559.0,0.10858961]
[1743969392855,0.26143584,79599.0,79584.0,0.012565]
[1743969393032,0.26143584,79599.0,79566.0,0.01454085]
[1743969393249,0.34,79598.0,79577.0,0.251328]
[1743969393453,0.34,79598.0,79577.0,0.12290297]
[1743969393657,0.34,79598.0,79579.0,0.251322]
[1743969393888,0.15,79599.0,79586.0,0.2513]
[1743969394088,0.15,79599.0,79582.0,0.012565]
[1743969394521,0.34,79598.0,79583.0,0.012565]
[1743969395071,0.34,79598.0,79583.0,0.263871]
[1743969395276,0.34,79598.0,79584.0,0.05239321]
[1743969395708,0.15,79599.0,79594.0,0.263835]
[1743969395915,0.15,79599.0,79592.0,0.012564]
[1743969396323,0.15,79599.0,79591.0,0.263846]
[1743969397151,0.15,79599.0,79592.0,0.012564]
[1743969397398,0.34,79608.0,79595.0,0.012563]
[1743969397604,0.34,79608.0,79597.0,0.012563]
[1743969397967,0.34,79608.0,79597.0,0.263826]
[1743969398294,0.00013595,79609.0,79597.0,0.263826]
[1743969398519,0.00013595,79609.0,79598.0,0.012563]
[1743969399642,0.00013595,79609.0,79603.0,0.012562]
[1743969399839,0.00013595,79609.0,79604.0,0.0411843]
[1743969400603,0.00013595,79609.0,79598.0,0.005]
[1743969401222,0.00013595,79609.0,79587.0,0.251294]
[1743969401429,0.34,79601.0,79582.0,0.012565]
[1743969401653,0.34,79601.0,79583.0,0.38677397]
[1743969401895,0.34,79601.0,79584.0,0.07295541]
[1743969402113,0.34,79601.0,79598.0,0.006]
[1743969402992,0.34,79601.0,79588.0,0.012564]
[1743969403220,0.34,79601.0,79589.0,0.12290297]
[1743969403653,0.00013595,79609.0,79595.0,0.251272]
[1743969403867,0.00013595,79609.0,79596.0,0.0276399]
[1743969404059,0.00013595,79609.0,79594.0,0.012563]
[1743969404727,0.00013595,79609.0,79596.0,0.251267]
[1743969405181,0.00013595,79609.0,79596.0,0.26383]
[1743969405189,0.00013595,79609.0,79596.0,0.251267]
[1743969405421,0.00013595,79609.0,79598.0,0.257262]
[1743969405587,0.00013595,79609.0,79597.0,0.19414937]
[1743969405826,0.00013595,79609.0,79597.0,0.44541137]
[1743969406017,0.00013595,79609.0,79601.0,0.012562]
[1743969406396,0.00013595,79609.0,79604.0,0.012562]
[1743969406611,0.00013595,79609.0,79605.0,0.0411839]
[1743969408138,0.00013595,79609.0,79605.0,0.0471839]
[1743969408831,0.00013595,79609.0,79606.0,0.37413997]
[1743969410468,0.00013595,79609.0,79607.0,0.251231]
[1743969411813,0.00013595,79609.0,79607.0,0.263792]
[1743969412036,0.00013595,79609.0,79608.0,0.12289768]
[1743969412166,0.00013595,79609.0,79608.0,0.25836165]
[1743969412371,0.00013595,79609.0,79608.0,0.2729025]
[1743969412598,0.00013595,79609.0,79608.0,0.3195025]
[1743969412781,0.00013595,79609.0,79608.0,0.56579638]
[1743969414243,0.0001675,79641.0,79640.0,0.263686]
[1743969414521,0.0006211,79641.0,79640.0,0.263686]
[1743969415692,0.0006211,79641.0,79640.0,0.269686]
[1743969415892,0.0006211,79641.0,79640.0,0.263686]
[1743969416321,0.0006211,79641.0,79640.0,0.39258897]
[1743969416518,0.0006211,79641.0,79640.0,0.45947247]
[1743969416719,0.0006211,79641.0,79640.0,0.47401332]
[1743969418082,0.0006211,79641.0,79640.0,0.46801332]